[Event "Titled Tuesday Blitz November 14 Late 2023"]
[White "Yelisieiev, Yevhenii"]
[Black "Gerbelli Neto, Eduardo"]
[WhiteFideId "14139642"]
[BlackFideId "2103281"]
[WhiteElo "2560"]
[BlackElo "2332"]
[Result "1-0"]
[Round "11"]
[TimeControl "180+1"]
[Date "2023.11.14"]
[WhiteClock "0:01:11"]
[BlackClock "0:00:08"]
[Board "69"]

1. d4 {[%clk 0:03:00]}  d5 {[%clk 0:02:59]} 2. Nf3 {[%clk 0:03:00]}  Nf6 {[%clk 0:02:59]} 3. e3 {[%clk 0:03:01]}  e6 {[%clk 0:02:58]} 4. Bd3 {[%clk 0:03:02]}  c5 {[%clk 0:02:57]} 5. O-O {[%clk 0:03:03]}  c4 {[%clk 0:02:57]} 6. Be2 {[%clk 0:03:03]}  Nc6 {[%clk 0:02:57]} 7. b3 {[%clk 0:03:02]}  cxb3 {[%clk 0:02:51]} 8. axb3 {[%clk 0:03:01]}  Bd6 {[%clk 0:02:50]} 9. c4 {[%clk 0:03:01]}  a5 {[%clk 0:02:43]} 10. Nc3 {[%clk 0:03:01]}  O-O {[%clk 0:02:40]} 11. Bb2 {[%clk 0:02:55]}  Qe7 {[%clk 0:02:34]} 12. Nb5 {[%clk 0:02:42]}  Bb4 {[%clk 0:02:30]} 13. Ne5 {[%clk 0:02:40]}  Bd7 {[%clk 0:01:51]} 14. Bf3 {[%clk 0:02:28]}  Rfd8 {[%clk 0:01:24]} 15. Nd3 {[%clk 0:02:27]}  Ne4 {[%clk 0:01:10]} 16. Nxb4 {[%clk 0:02:04]}  axb4 {[%clk 0:01:03]} 17. Bxe4 {[%clk 0:02:01]}  dxe4 {[%clk 0:01:00]} 18. d5 {[%clk 0:01:57]}  exd5 {[%clk 0:00:55]} 19. Rxa8 {[%clk 0:01:54]}  Rxa8 {[%clk 0:00:54]} 20. Nc7 {[%clk 0:01:54]}  Ra2 {[%clk 0:00:53]} 21. Nxd5 {[%clk 0:01:53]}  Qg5 {[%clk 0:00:36]} 22. Qb1 {[%clk 0:01:51]}  Rxb2 {[%clk 0:00:12]} 23. Qxb2 {[%clk 0:01:50]}  Bh3 {[%clk 0:00:13]} 24. Nf4 {[%clk 0:01:50]}  Ne5 {[%clk 0:00:14]} 25. Nxh3 {[%clk 0:01:39]}  Nf3+ {[%clk 0:00:14]} 26. Kh1 {[%clk 0:01:39]}  Qg4 {[%clk 0:00:15]} 27. Qe2 {[%clk 0:01:22]}  g5 {[%clk 0:00:15]} 28. Ng1 {[%clk 0:01:15]}  Nxh2 {[%clk 0:00:11]} 29. Qxg4 {[%clk 0:01:13]}  Nxg4 {[%clk 0:00:08]} 30. Nh3 {[%clk 0:01:11]} 1-0


[Site "https://www.chess.com"]

[Event "Titled Tuesday Blitz November 14 Late 2023"]
[White "rikchessmx"]
[Black "Pinheiro, Iung Alicio de O."]
[BlackFideId "2104350"]
[WhiteElo "2330"]
[BlackElo "2525"]
[Result "0-1"]
[Round "11"]
[TimeControl "180+1"]
[Date "2023.11.14"]
[WhiteClock "0:00:58"]
[BlackClock "0:00:24"]
[Board "70"]

1. e4 {[%clk 0:03:00]}  g6 {[%clk 0:02:58]} 2. d4 {[%clk 0:02:59]}  Bg7 {[%clk 0:02:58]} 3. Nc3 {[%clk 0:02:58]}  d6 {[%clk 0:02:59]} 4. f3 {[%clk 0:02:58]}  Nd7 {[%clk 0:02:57]} 5. Be3 {[%clk 0:02:58]}  a6 {[%clk 0:02:57]} 6. Qd2 {[%clk 0:02:58]}  b5 {[%clk 0:02:58]} 7. h4 {[%clk 0:02:55]}  h5 {[%clk 0:02:38]} 8. a4 {[%clk 0:02:51]}  b4 {[%clk 0:02:37]} 9. Nce2 {[%clk 0:02:50]}  c5 {[%clk 0:02:30]} 10. Nh3 {[%clk 0:02:49]}  Bb7 {[%clk 0:02:19]} 11. Ng5 {[%clk 0:02:48]}  Ngf6 {[%clk 0:02:19]} 12. c3 {[%clk 0:02:44]}  a5 {[%clk 0:02:17]} 13. Nf4 {[%clk 0:02:43]}  bxc3 {[%clk 0:02:04]} 14. bxc3 {[%clk 0:02:42]}  cxd4 {[%clk 0:01:48]} 15. cxd4 {[%clk 0:02:39]}  e5 {[%clk 0:01:43]} 16. Nfe6 {[%clk 0:02:21]}  fxe6 {[%clk 0:01:37]} 17. Nxe6 {[%clk 0:02:21]}  Qe7 {[%clk 0:01:35]} 18. Nc7+ {[%clk 0:02:17]}  Kf7 {[%clk 0:01:35]} 19. Nxa8 {[%clk 0:02:17]}  Rxa8 {[%clk 0:01:36]} 20. Bc4+ {[%clk 0:02:16]}  d5 {[%clk 0:01:31]} 21. exd5 {[%clk 0:02:14]}  Bxd5 {[%clk 0:01:32]} 22. Qa2 {[%clk 0:02:05]}  Qe6 {[%clk 0:01:29]} 23. Bxd5 {[%clk 0:02:04]}  Nxd5 {[%clk 0:01:29]} 24. Bf2 {[%clk 0:01:58]}  exd4+ {[%clk 0:01:28]} 25. Kf1 {[%clk 0:01:56]}  d3 {[%clk 0:01:15]} 26. Kg1 {[%clk 0:01:45]}  Bxa1 {[%clk 0:00:53]} 27. Qxa1 {[%clk 0:01:44]}  d2 {[%clk 0:00:51]} 28. Qd4 {[%clk 0:01:38]}  Qe1+ {[%clk 0:00:45]} 29. Kh2 {[%clk 0:01:38]}  Qe5+ {[%clk 0:00:45]} 30. Kh3 {[%clk 0:01:22]}  Qxd4 {[%clk 0:00:39]} 31. Bxd4 {[%clk 0:01:22]}  Rc8 {[%clk 0:00:37]} 32. Rd1 {[%clk 0:01:22]}  Rc2 {[%clk 0:00:38]} 33. g4 {[%clk 0:01:21]}  N7f6 {[%clk 0:00:29]} 34. g5 {[%clk 0:01:16]}  Ne8 {[%clk 0:00:29]} 35. Kg3 {[%clk 0:01:16]}  Nd6 {[%clk 0:00:29]} 36. Kf2 {[%clk 0:01:14]}  Nc4 {[%clk 0:00:28]} 37. Ke2 {[%clk 0:01:10]}  Nc3+ {[%clk 0:00:27]} 38. Bxc3 {[%clk 0:01:09]}  Rxc3 {[%clk 0:00:26]} 39. f4 {[%clk 0:01:08]}  Ke6 {[%clk 0:00:24]} 40. Rf1 {[%clk 0:01:05]}  Rc1 {[%clk 0:00:24]} 41. Rd1 {[%clk 0:00:58]}  Kf5 {[%clk 0:00:24]} 0-1


[Site "https://www.chess.com"]

[Event "Titled Tuesday Blitz November 14 Late 2023"]
[White "Aarakan, J"]
[Black "Weisz, Bryan"]
[WhiteFideId "9946276"]
[BlackFideId "30934133"]
[WhiteElo "2247"]
[BlackElo "2417"]
[Result "0-1"]
[Round "11"]
[TimeControl "180+1"]
[Date "2023.11.14"]
[WhiteClock "0:00:17"]
[BlackClock "0:00:19"]
[Board "71"]

1. e4 {[%clk 0:03:00]}  c5 {[%clk 0:03:00]} 2. Nf3 {[%clk 0:03:00]}  d6 {[%clk 0:03:00]} 3. c3 {[%clk 0:03:01]}  Nf6 {[%clk 0:02:57]} 4. Qc2 {[%clk 0:03:01]}  Nc6 {[%clk 0:02:52]} 5. d4 {[%clk 0:03:01]}  cxd4 {[%clk 0:02:42]} 6. cxd4 {[%clk 0:03:02]}  Bg4 {[%clk 0:02:41]} 7. Be3 {[%clk 0:03:02]}  Bxf3 {[%clk 0:02:38]} 8. gxf3 {[%clk 0:03:03]}  a6 {[%clk 0:02:32]} 9. Nc3 {[%clk 0:03:01]}  e6 {[%clk 0:02:27]} 10. Rg1 {[%clk 0:02:52]}  d5 {[%clk 0:02:20]} 11. O-O-O {[%clk 0:02:44]}  Bb4 {[%clk 0:02:14]} 12. e5 {[%clk 0:02:37]}  Nh5 {[%clk 0:02:05]} 13. Kb1 {[%clk 0:02:26]}  g6 {[%clk 0:01:43]} 14. Ne2 {[%clk 0:01:57]}  Ng7 {[%clk 0:01:33]} 15. Bg5 {[%clk 0:01:55]}  Be7 {[%clk 0:01:28]} 16. Bxe7 {[%clk 0:01:37]}  Qxe7 {[%clk 0:01:21]} 17. Ng3 {[%clk 0:01:37]}  h5 {[%clk 0:01:16]} 18. Qb3 {[%clk 0:01:15]}  h4 {[%clk 0:01:16]} 19. Ne2 {[%clk 0:01:15]}  Nf5 {[%clk 0:01:07]} 20. Bh3 {[%clk 0:01:14]}  b5 {[%clk 0:01:00]} 21. Bxf5 {[%clk 0:01:08]}  gxf5 {[%clk 0:01:00]} 22. Nf4 {[%clk 0:00:59]}  Na5 {[%clk 0:00:55]} 23. Qc3 {[%clk 0:00:51]}  Nc4 {[%clk 0:00:53]} 24. b3 {[%clk 0:00:51]}  b4 {[%clk 0:00:51]} 25. Qd3 {[%clk 0:00:41]}  Na3+ {[%clk 0:00:46]} 26. Kb2 {[%clk 0:00:41]}  Nb5 {[%clk 0:00:46]} 27. Rc1 {[%clk 0:00:34]}  Nc3 {[%clk 0:00:45]} 28. Rxc3 {[%clk 0:00:34]}  bxc3+ {[%clk 0:00:46]} 29. Qxc3 {[%clk 0:00:35]}  Qd7 {[%clk 0:00:34]} 30. Nd3 {[%clk 0:00:34]}  Rc8 {[%clk 0:00:29]} 31. Nc5 {[%clk 0:00:34]}  Qc6 {[%clk 0:00:28]} 32. Qd3 {[%clk 0:00:33]}  Ke7 {[%clk 0:00:25]} 33. Qxa6 {[%clk 0:00:22]}  Qxa6 {[%clk 0:00:26]} 34. Nxa6 {[%clk 0:00:22]}  Rhg8 {[%clk 0:00:24]} 35. Rxg8 {[%clk 0:00:19]}  Rxg8 {[%clk 0:00:24]} 36. Nc5 {[%clk 0:00:17]}  Rg2 {[%clk 0:00:23]} 37. b4 {[%clk 0:00:18]}  Rxh2 {[%clk 0:00:20]} 38. b5 {[%clk 0:00:18]}  Rxf2+ {[%clk 0:00:20]} 39. Kc3 {[%clk 0:00:19]}  Rxa2 {[%clk 0:00:17]} 40. b6 {[%clk 0:00:19]}  Ra8 {[%clk 0:00:17]} 41. b7 {[%clk 0:00:16]}  Rb8 {[%clk 0:00:18]} 42. Kd2 {[%clk 0:00:17]}  h3 {[%clk 0:00:18]} 43. Ke2 {[%clk 0:00:17]}  h2 {[%clk 0:00:18]} 44. Kf2 {[%clk 0:00:17]}  h1=Q {[%clk 0:00:19]} 0-1


[Site "https://www.chess.com"]

[Event "Titled Tuesday Blitz November 14 Late 2023"]
[White "Balla, Tamas-Kristof"]
[Black "Acosta Cruz, Oscar Yosimar"]
[WhiteFideId "1208497"]
[BlackFideId "5111269"]
[WhiteElo "2385"]
[BlackElo "2226"]
[Result "0-1"]
[Round "11"]
[TimeControl "180+1"]
[Date "2023.11.14"]
[WhiteClock "0:00:11"]
[BlackClock "0:00:04"]
[Board "73"]

1. e4 {[%clk 0:03:00]}  c6 {[%clk 0:03:00]} 2. d4 {[%clk 0:03:00]}  d5 {[%clk 0:03:00]} 3. exd5 {[%clk 0:03:01]}  cxd5 {[%clk 0:03:00]} 4. c4 {[%clk 0:03:01]}  Nf6 {[%clk 0:03:00]} 5. Nc3 {[%clk 0:03:01]}  Nc6 {[%clk 0:03:00]} 6. Bg5 {[%clk 0:03:00]}  e6 {[%clk 0:03:00]} 7. Nf3 {[%clk 0:03:00]}  Be7 {[%clk 0:03:00]} 8. cxd5 {[%clk 0:02:59]}  Nxd5 {[%clk 0:03:00]} 9. Bxe7 {[%clk 0:02:59]}  Ncxe7 {[%clk 0:03:00]} 10. Bd3 {[%clk 0:03:00]}  O-O {[%clk 0:03:00]} 11. O-O {[%clk 0:03:00]}  Nc6 {[%clk 0:02:55]} 12. a3 {[%clk 0:02:53]}  a6 {[%clk 0:02:54]} 13. Re1 {[%clk 0:02:50]}  b5 {[%clk 0:02:53]} 14. Ne5 {[%clk 0:02:50]}  Bb7 {[%clk 0:02:51]} 15. Qh5 {[%clk 0:02:48]}  Nf6 {[%clk 0:02:48]} 16. Qh3 {[%clk 0:02:25]}  Qxd4 {[%clk 0:02:40]} 17. Rad1 {[%clk 0:02:14]}  Qf4 {[%clk 0:02:22]} 18. Nd7 {[%clk 0:02:14]}  h6 {[%clk 0:02:13]} 19. Nxf8 {[%clk 0:02:08]}  Rxf8 {[%clk 0:02:11]} 20. Ne4 {[%clk 0:02:02]}  Nd5 {[%clk 0:02:01]} 21. Qg3 {[%clk 0:01:56]}  Ne5 {[%clk 0:01:42]} 22. Nc5 {[%clk 0:01:48]}  Nxd3 {[%clk 0:01:40]} 23. Rxd3 {[%clk 0:01:38]}  Ba8 {[%clk 0:01:24]} 24. Nxa6 {[%clk 0:01:20]}  Qc4 {[%clk 0:01:16]} 25. Nb4 {[%clk 0:01:09]}  Nxb4 {[%clk 0:01:15]} 26. axb4 {[%clk 0:01:09]}  Qxb4 {[%clk 0:01:15]} 27. Qe5 {[%clk 0:01:01]}  Bd5 {[%clk 0:01:09]} 28. Rg3 {[%clk 0:01:00]}  f6 {[%clk 0:01:07]} 29. Qe3 {[%clk 0:01:00]}  Qxb2 {[%clk 0:01:05]} 30. Qxh6 {[%clk 0:00:56]}  Rf7 {[%clk 0:01:00]} 31. Rc1 {[%clk 0:00:56]}  Bb7 {[%clk 0:00:50]} 32. h3 {[%clk 0:00:56]}  Qe5 {[%clk 0:00:42]} 33. Qg6 {[%clk 0:00:50]}  f5 {[%clk 0:00:34]} 34. Re3 {[%clk 0:00:43]}  Qb2 {[%clk 0:00:29]} 35. Rce1 {[%clk 0:00:39]}  Bd5 {[%clk 0:00:24]} 36. Re5 {[%clk 0:00:32]}  Rf6 {[%clk 0:00:22]} 37. Qe8+ {[%clk 0:00:30]}  Kh7 {[%clk 0:00:23]} 38. Qh5+ {[%clk 0:00:19]}  Rh6 {[%clk 0:00:20]} 39. Qg5 {[%clk 0:00:19]}  Rg6 {[%clk 0:00:18]} 40. Qh5+ {[%clk 0:00:19]}  Rh6 {[%clk 0:00:18]} 41. Qd1 {[%clk 0:00:19]}  Rg6 {[%clk 0:00:14]} 42. Rxd5 {[%clk 0:00:19]}  exd5 {[%clk 0:00:11]} 43. Qh5+ {[%clk 0:00:20]}  Rh6 {[%clk 0:00:11]} 44. Qxf5+ {[%clk 0:00:21]}  Rg6 {[%clk 0:00:07]} 45. Re6 {[%clk 0:00:20]}  Qc1+ {[%clk 0:00:03]} 46. Kh2 {[%clk 0:00:20]}  Qg5 {[%clk 0:00:04]} 47. Qf7 {[%clk 0:00:11]}  Qxg2# {[%clk 0:00:04]} 0-1


[Site "https://www.chess.com"]

[Event "Titled Tuesday Blitz November 14 Late 2023"]
[White "TheAlienParty"]
[Black "Broca Jimenez, Fernando"]
[BlackFideId "5104742"]
[WhiteElo "2376"]
[BlackElo "2209"]
[Result "1/2-1/2"]
[Round "11"]
[TimeControl "180+1"]
[Date "2023.11.14"]
[WhiteClock "0:01:02"]
[BlackClock "0:00:08"]
[Board "74"]

1. c4 {[%clk 0:02:54]}  Nf6 {[%clk 0:02:59]} 2. Nc3 {[%clk 0:02:53]}  g6 {[%clk 0:02:55]} 3. g3 {[%clk 0:02:52]}  Bg7 {[%clk 0:02:55]} 4. Bg2 {[%clk 0:02:52]}  O-O {[%clk 0:02:56]} 5. e3 {[%clk 0:02:52]}  d6 {[%clk 0:02:57]} 6. Nge2 {[%clk 0:02:52]}  c5 {[%clk 0:02:57]} 7. O-O {[%clk 0:02:52]}  Nc6 {[%clk 0:02:57]} 8. d4 {[%clk 0:02:52]}  a6 {[%clk 0:02:50]} 9. b3 {[%clk 0:02:51]}  Qc7 {[%clk 0:02:49]} 10. Bb2 {[%clk 0:02:51]}  b6 {[%clk 0:02:41]} 11. Rc1 {[%clk 0:02:49]}  Bb7 {[%clk 0:02:41]} 12. d5 {[%clk 0:02:46]}  Nb8 {[%clk 0:02:40]} 13. e4 {[%clk 0:02:45]}  Nbd7 {[%clk 0:02:21]} 14. f4 {[%clk 0:02:44]}  Rad8 {[%clk 0:02:09]} 15. Qd3 {[%clk 0:02:43]}  e6 {[%clk 0:01:59]} 16. dxe6 {[%clk 0:02:40]}  fxe6 {[%clk 0:01:55]} 17. Rcd1 {[%clk 0:02:39]}  Nb8 {[%clk 0:01:53]} 18. h3 {[%clk 0:02:30]}  Rf7 {[%clk 0:01:43]} 19. Rd2 {[%clk 0:02:28]}  Rfd7 {[%clk 0:01:42]} 20. Kh2 {[%clk 0:02:20]}  d5 {[%clk 0:01:20]} 21. exd5 {[%clk 0:02:18]}  exd5 {[%clk 0:01:19]} 22. Nxd5 {[%clk 0:02:11]}  Bxd5 {[%clk 0:01:12]} 23. cxd5 {[%clk 0:02:09]}  Nxd5 {[%clk 0:01:10]} 24. Bxg7 {[%clk 0:02:08]}  Kxg7 {[%clk 0:01:10]} 25. Qc4 {[%clk 0:01:54]}  Nf6 {[%clk 0:01:04]} 26. Rxd7+ {[%clk 0:01:50]}  Qxd7 {[%clk 0:01:01]} 27. Nc3 {[%clk 0:01:48]}  Qd3 {[%clk 0:00:42]} 28. Na4 {[%clk 0:01:36]}  Qxc4 {[%clk 0:00:32]} 29. bxc4 {[%clk 0:01:36]}  Rd6 {[%clk 0:00:32]} 30. Rb1 {[%clk 0:01:33]}  Nbd7 {[%clk 0:00:33]} 31. Rb2 {[%clk 0:01:32]}  Kf7 {[%clk 0:00:26]} 32. Bb7 {[%clk 0:01:28]}  a5 {[%clk 0:00:25]} 33. g4 {[%clk 0:01:21]}  h6 {[%clk 0:00:17]} 34. g5 {[%clk 0:01:20]}  hxg5 {[%clk 0:00:17]} 35. fxg5 {[%clk 0:01:19]}  Nh5 {[%clk 0:00:13]} 36. Bc8 {[%clk 0:01:19]}  Nf4 {[%clk 0:00:09]} 37. Bxd7 {[%clk 0:01:18]}  Rxd7 {[%clk 0:00:10]} 38. Nxb6 {[%clk 0:01:18]}  Rd3 {[%clk 0:00:09]} 39. Rb5 {[%clk 0:01:14]}  Rxh3+ {[%clk 0:00:09]} 40. Kg1 {[%clk 0:01:14]}  Ra3 {[%clk 0:00:08]} 41. Rxc5 {[%clk 0:01:13]}  Rxa2 {[%clk 0:00:09]} 42. Nd5 {[%clk 0:01:12]}  Nh3+ {[%clk 0:00:08]} 43. Kf1 {[%clk 0:01:10]}  Nxg5 {[%clk 0:00:09]} 44. Nc3 {[%clk 0:01:09]}  Rc2 {[%clk 0:00:07]} 45. Rxg5 {[%clk 0:01:08]}  Rxc3 {[%clk 0:00:07]} 46. Rxa5 {[%clk 0:01:09]}  Rxc4 {[%clk 0:00:08]} 47. Kf2 {[%clk 0:01:08]}  Rf4+ {[%clk 0:00:08]} 48. Kg3 {[%clk 0:01:08]}  Rf5 {[%clk 0:00:09]} 49. Ra6 {[%clk 0:01:07]}  Kg7 {[%clk 0:00:08]} 50. Kg4 {[%clk 0:01:07]}  Kh6 {[%clk 0:00:09]} 51. Rb6 {[%clk 0:01:07]}  Rd5 {[%clk 0:00:09]} 52. Ra6 {[%clk 0:01:07]}  Rd4+ {[%clk 0:00:09]} 53. Kg3 {[%clk 0:01:06]}  Kh5 {[%clk 0:00:10]} 54. Ra5+ {[%clk 0:01:06]}  g5 {[%clk 0:00:10]} 55. Ra3 {[%clk 0:01:06]}  Rg4+ {[%clk 0:00:10]} 56. Kh3 {[%clk 0:01:05]}  Rh4+ {[%clk 0:00:10]} 57. Kg3 {[%clk 0:01:05]}  Rc4 {[%clk 0:00:10]} 58. Rb3 {[%clk 0:01:04]}  Rd4 {[%clk 0:00:09]} 59. Ra3 {[%clk 0:01:02]}  Rc4 {[%clk 0:00:08]} 1/2-1/2


[Site "https://www.chess.com"]

[Event "Titled Tuesday Blitz November 14 Late 2023"]
[White "Winkels, Marcel"]
[Black "Romero Ruscalleda, Josep"]
[WhiteFideId "1003887"]
[BlackFideId "2231859"]
[WhiteElo "2110"]
[BlackElo "2319"]
[Result "0-1"]
[Round "11"]
[TimeControl "180+1"]
[Date "2023.11.14"]
[WhiteClock "0:00:41"]
[BlackClock "0:00:56"]
[Board "77"]

1. e4 {[%clk 0:03:00]}  g6 {[%clk 0:03:00]} 2. d4 {[%clk 0:03:00]}  Bg7 {[%clk 0:03:00]} 3. Nc3 {[%clk 0:03:00]}  d6 {[%clk 0:03:01]} 4. Bg5 {[%clk 0:03:00]}  Nd7 {[%clk 0:03:00]} 5. f4 {[%clk 0:02:59]}  c5 {[%clk 0:02:59]} 6. Nf3 {[%clk 0:02:48]}  Qb6 {[%clk 0:02:59]} 7. Nd5 {[%clk 0:02:23]}  Qa5+ {[%clk 0:02:44]} 8. c3 {[%clk 0:02:21]}  cxd4 {[%clk 0:02:39]} 9. Nxd4 {[%clk 0:02:19]}  Ngf6 {[%clk 0:02:39]} 10. Nxf6+ {[%clk 0:01:58]}  Nxf6 {[%clk 0:02:38]} 11. Bd3 {[%clk 0:01:57]}  O-O {[%clk 0:02:30]} 12. O-O {[%clk 0:01:56]}  Qb6 {[%clk 0:02:13]} 13. e5 {[%clk 0:01:48]}  dxe5 {[%clk 0:02:06]} 14. fxe5 {[%clk 0:01:48]}  Ng4 {[%clk 0:02:00]} 15. Bxe7 {[%clk 0:01:40]}  Re8 {[%clk 0:01:45]} 16. Bf6 {[%clk 0:01:35]}  Ne3 {[%clk 0:01:38]} 17. Qf3 {[%clk 0:01:26]}  Nxf1 {[%clk 0:01:36]} 18. Rxf1 {[%clk 0:01:25]}  Be6 {[%clk 0:01:22]} 19. Kh1 {[%clk 0:01:20]}  Rac8 {[%clk 0:01:13]} 20. Nxe6 {[%clk 0:01:13]}  Qxe6 {[%clk 0:01:11]} 21. b3 {[%clk 0:01:00]}  Rxc3 {[%clk 0:01:04]} 22. Qe2 {[%clk 0:00:46]}  Bxf6 {[%clk 0:00:58]} 23. Rxf6 {[%clk 0:00:44]}  Qxf6 {[%clk 0:00:58]} 24. exf6 {[%clk 0:00:44]}  Rxe2 {[%clk 0:00:56]} 25. Bxe2 {[%clk 0:00:41]}  Rc1+ {[%clk 0:00:56]} 0-1


[Site "https://www.chess.com"]

[Event "Titled Tuesday Blitz November 14 Late 2023"]
[White "Ghosh, Chanchal Kumer"]
[Black "RodokininEV"]
[WhiteFideId "10201858"]
[WhiteElo "2174"]
[BlackElo "2474"]
[Result "1-0"]
[Round "11"]
[TimeControl "180+1"]
[Date "2023.11.14"]
[WhiteClock "0:01:48"]
[BlackClock "0:02:02"]
[Board "82"]

1. e4 {[%clk 0:02:56]}  c5 {[%clk 0:02:55]} 2. Nf3 {[%clk 0:02:56]}  Nc6 {[%clk 0:02:56]} 3. d4 {[%clk 0:02:56]}  cxd4 {[%clk 0:02:57]} 4. Nxd4 {[%clk 0:02:57]}  Nf6 {[%clk 0:02:58]} 5. Nxc6 {[%clk 0:02:54]}  dxc6 {[%clk 0:02:57]} 6. Bd3 {[%clk 0:02:48]}  e5 {[%clk 0:02:57]} 7. h3 {[%clk 0:02:48]}  Bc5 {[%clk 0:02:56]} 8. O-O {[%clk 0:02:47]}  O-O {[%clk 0:02:55]} 9. Bg5 {[%clk 0:02:47]}  Be7 {[%clk 0:02:55]} 10. Nd2 {[%clk 0:02:47]}  b5 {[%clk 0:02:54]} 11. a4 {[%clk 0:02:45]}  Qb6 {[%clk 0:02:48]} 12. Qe2 {[%clk 0:02:36]}  Bd7 {[%clk 0:02:40]} 13. Kh1 {[%clk 0:02:25]}  a6 {[%clk 0:02:39]} 14. f4 {[%clk 0:02:18]}  h6 {[%clk 0:02:34]} 15. fxe5 {[%clk 0:02:05]}  hxg5 {[%clk 0:02:34]} 16. exf6 {[%clk 0:02:05]}  Bxf6 {[%clk 0:02:30]} 17. e5 {[%clk 0:02:01]}  Bd8 {[%clk 0:02:09]} 18. Qh5 {[%clk 0:01:51]}  g6 {[%clk 0:02:05]} 19. Bxg6 {[%clk 0:01:48]}  fxg6 {[%clk 0:02:02]} 20. Qxg6+ {[%clk 0:01:48]} 1-0


[Site "https://www.chess.com"]

[Event "Titled Tuesday Blitz November 14 Late 2023"]
[White "Darko-Dimitrijevic"]
[Black "campochess"]
[WhiteElo "2182"]
[BlackElo "2178"]
[Result "0-1"]
[Round "11"]
[TimeControl "180+1"]
[Date "2023.11.14"]
[WhiteClock "0:00:29"]
[BlackClock "0:01:26"]
[Board "85"]

1. c4 {[%clk 0:03:00]}  e6 {[%clk 0:02:57]} 2. g3 {[%clk 0:02:56]}  d5 {[%clk 0:02:57]} 3. Bg2 {[%clk 0:02:56]}  c6 {[%clk 0:02:57]} 4. b3 {[%clk 0:02:56]}  Nf6 {[%clk 0:02:57]} 5. Bb2 {[%clk 0:02:56]}  Be7 {[%clk 0:02:57]} 6. Nf3 {[%clk 0:02:54]}  Nbd7 {[%clk 0:02:56]} 7. O-O {[%clk 0:02:54]}  O-O {[%clk 0:02:56]} 8. d3 {[%clk 0:02:53]}  a5 {[%clk 0:02:56]} 9. a3 {[%clk 0:02:46]}  b5 {[%clk 0:02:55]} 10. Qc2 {[%clk 0:02:43]}  Bb7 {[%clk 0:02:54]} 11. Nc3 {[%clk 0:02:38]}  Qb6 {[%clk 0:02:43]} 12. e4 {[%clk 0:02:29]}  d4 {[%clk 0:02:39]} 13. Ne2 {[%clk 0:02:23]}  e5 {[%clk 0:02:39]} 14. Nh4 {[%clk 0:02:15]}  g6 {[%clk 0:02:38]} 15. Bc1 {[%clk 0:02:12]}  c5 {[%clk 0:02:28]} 16. Bh6 {[%clk 0:02:11]}  Rfe8 {[%clk 0:02:28]} 17. f4 {[%clk 0:02:09]}  exf4 {[%clk 0:02:26]} 18. Bxf4 {[%clk 0:02:04]}  Nh5 {[%clk 0:02:22]} 19. Bd2 {[%clk 0:02:01]}  Bxh4 {[%clk 0:02:21]} 20. gxh4 {[%clk 0:02:01]}  Ne5 {[%clk 0:02:17]} 21. Ng3 {[%clk 0:01:58]}  Nxg3 {[%clk 0:02:14]} 22. hxg3 {[%clk 0:01:57]}  Bc8 {[%clk 0:02:05]} 23. Rf4 {[%clk 0:01:29]}  bxc4 {[%clk 0:02:01]} 24. bxc4 {[%clk 0:01:28]}  Rb8 {[%clk 0:02:00]} 25. Raf1 {[%clk 0:01:25]}  Qb3 {[%clk 0:01:58]} 26. Qxb3 {[%clk 0:01:24]}  Rxb3 {[%clk 0:01:57]} 27. Bxa5 {[%clk 0:01:23]}  Rxa3 {[%clk 0:01:55]} 28. Bc7 {[%clk 0:01:23]}  Ra7 {[%clk 0:01:44]} 29. Bxe5 {[%clk 0:01:18]}  Rxe5 {[%clk 0:01:43]} 30. Rb1 {[%clk 0:01:17]}  Be6 {[%clk 0:01:42]} 31. Rb5 {[%clk 0:01:10]}  Ra3 {[%clk 0:01:40]} 32. Bf1 {[%clk 0:01:10]}  f5 {[%clk 0:01:38]} 33. exf5 {[%clk 0:01:09]}  gxf5 {[%clk 0:01:38]} 34. h5 {[%clk 0:01:04]}  Kg7 {[%clk 0:01:38]} 35. Rb7+ {[%clk 0:01:03]}  Kh6 {[%clk 0:01:38]} 36. Bg2 {[%clk 0:00:53]}  Re3 {[%clk 0:01:33]} 37. Rb6 {[%clk 0:00:53]}  Kg5 {[%clk 0:01:31]} 38. Rf3 {[%clk 0:00:50]}  Raxd3 {[%clk 0:01:28]} 39. Rxe6 {[%clk 0:00:37]}  Rxf3 {[%clk 0:01:26]} 40. Bxf3 {[%clk 0:00:37]}  Rxf3 {[%clk 0:01:26]} 41. Kg2 {[%clk 0:00:29]}  Rc3 {[%clk 0:01:26]} 0-1


[Site "https://www.chess.com"]

[Event "Titled Tuesday Blitz November 14 Late 2023"]
[White "Burke, Paul"]
[Black "Vargas, Mauricio"]
[WhiteFideId "2605767"]
[BlackFideId "4404572"]
[WhiteElo "1852"]
[BlackElo "1838"]
[Result "1-0"]
[Round "11"]
[TimeControl "180+1"]
[Date "2023.11.14"]
[WhiteClock "0:00:12"]
[BlackClock "0:00:00"]
[Board "90"]

1. e4 {[%clk 0:02:57]}  d5 {[%clk 0:02:59]} 2. d4 {[%clk 0:02:56]}  dxe4 {[%clk 0:02:54]} 3. f3 {[%clk 0:02:56]}  exf3 {[%clk 0:02:54]} 4. Nxf3 {[%clk 0:02:56]}  Nf6 {[%clk 0:02:55]} 5. Bc4 {[%clk 0:02:56]}  e6 {[%clk 0:02:53]} 6. O-O {[%clk 0:02:54]}  Bd6 {[%clk 0:02:53]} 7. Bg5 {[%clk 0:02:50]}  O-O {[%clk 0:02:52]} 8. Qe2 {[%clk 0:02:47]}  b6 {[%clk 0:02:49]} 9. Ne5 {[%clk 0:02:44]}  Bb7 {[%clk 0:02:47]} 10. Ng4 {[%clk 0:02:37]}  Nbd7 {[%clk 0:02:42]} 11. c3 {[%clk 0:02:30]}  Be7 {[%clk 0:02:36]} 12. Nxf6+ {[%clk 0:02:25]}  Nxf6 {[%clk 0:02:32]} 13. Nd2 {[%clk 0:02:20]}  Nd5 {[%clk 0:02:32]} 14. Bxe7 {[%clk 0:02:16]}  Qxe7 {[%clk 0:02:30]} 15. Bd3 {[%clk 0:02:05]}  Qg5 {[%clk 0:02:23]} 16. Nf3 {[%clk 0:02:01]}  Qe3+ {[%clk 0:02:19]} 17. Qxe3 {[%clk 0:01:54]}  Nxe3 {[%clk 0:02:19]} 18. Rfe1 {[%clk 0:01:51]}  Ng4 {[%clk 0:02:10]} 19. h3 {[%clk 0:01:46]}  Nf6 {[%clk 0:02:09]} 20. Ne5 {[%clk 0:01:44]}  Rad8 {[%clk 0:02:04]} 21. Rad1 {[%clk 0:01:43]}  Nd5 {[%clk 0:01:51]} 22. Be4 {[%clk 0:01:39]}  c6 {[%clk 0:01:47]} 23. a3 {[%clk 0:01:36]}  Ne7 {[%clk 0:01:44]} 24. Nf3 {[%clk 0:01:29]}  Rd7 {[%clk 0:01:41]} 25. Ne5 {[%clk 0:01:25]}  Rc7 {[%clk 0:01:40]} 26. Nc4 {[%clk 0:01:14]}  Rd8 {[%clk 0:01:35]} 27. Ne3 {[%clk 0:01:13]}  Ng6 {[%clk 0:01:29]} 28. Bxg6 {[%clk 0:01:12]}  hxg6 {[%clk 0:01:28]} 29. Ng4 {[%clk 0:01:10]}  c5 {[%clk 0:01:27]} 30. dxc5 {[%clk 0:01:08]}  Rxd1 {[%clk 0:01:26]} 31. Rxd1 {[%clk 0:01:08]}  Rxc5 {[%clk 0:01:24]} 32. Rd8+ {[%clk 0:01:03]}  Kh7 {[%clk 0:01:23]} 33. Rd7 {[%clk 0:01:03]}  Be4 {[%clk 0:00:59]} 34. Rxa7 {[%clk 0:00:57]}  Rg5 {[%clk 0:00:52]} 35. Kf2 {[%clk 0:00:47]}  Rf5+ {[%clk 0:00:49]} 36. Ke3 {[%clk 0:00:45]}  Bxg2 {[%clk 0:00:47]} 37. Nf2 {[%clk 0:00:41]}  Bd5 {[%clk 0:00:45]} 38. Ra6 {[%clk 0:00:36]}  b5 {[%clk 0:00:43]} 39. Rb6 {[%clk 0:00:35]}  Bc4 {[%clk 0:00:43]} 40. Rb7 {[%clk 0:00:24]}  Kh6 {[%clk 0:00:42]} 41. Ne4 {[%clk 0:00:22]}  f6 {[%clk 0:00:24]} 42. Nd6 {[%clk 0:00:21]}  Rc5 {[%clk 0:00:20]} 43. Nxc4 {[%clk 0:00:20]}  bxc4 {[%clk 0:00:19]} 44. a4 {[%clk 0:00:19]}  e5 {[%clk 0:00:15]} 45. Rb5 {[%clk 0:00:18]}  Rc7 {[%clk 0:00:12]} 46. a5 {[%clk 0:00:18]}  Kh5 {[%clk 0:00:10]} 47. a6 {[%clk 0:00:17]}  Ra7 {[%clk 0:00:07]} 48. Rb6 {[%clk 0:00:17]}  Kh4 {[%clk 0:00:06]} 49. Ke4 {[%clk 0:00:16]}  Kxh3 {[%clk 0:00:06]} 50. Kd5 {[%clk 0:00:16]}  Kg4 {[%clk 0:00:05]} 51. Kxc4 {[%clk 0:00:13]}  e4 {[%clk 0:00:04]} 52. Kb5 {[%clk 0:00:12]}  f5 {[%clk 0:00:00]} 53. Rb7 {[%clk 0:00:12]} 1-0